Workbook

Sheet Data
B1: How to make a Dashboard in 15 Mins | N1: www.goodly.co.in
B4: Date | C4: Year | D4: Qtr | E4: Sales Rep | F4: Customer | G4: Amount | H4: Profit | I4: Profit % | J4: Region | N4: Sales Reps | P4: Customers
B5: 2005-01-01 | C5: =YEAR(Data[[#This Row],[Date]]) -> 2005 | D5: ="Q "&CEILING(MONTH(Data[[#This Row],[Date]]),3)/3 -> Q 1 | E5: Jaspreet | F5: VCC | G5: 10150 | H5: 2200 | I5: =Data[[#This Row],[Profit]]/Data[[#This Row],[Amount]] -> 0.2167487685 | J5: North | N5: Jaspreet | P5: VCC
B6: 2005-01-01 | C6: =YEAR(Data[[#This Row],[Date]]) -> 2005 | D6: ="Q "&CEILING(MONTH(Data[[#This Row],[Date]]),3)/3 -> Q 1 | E6: Charley | F6: Sharma & Co | G6: 12100 | H6: 3640 | I6: =Data[[#This Row],[Profit]]/Data[[#This Row],[Amount]] -> 0.3008264463 | J6: East | N6: Charley | P6: Sharma & Co
B7: 2005-01-06 | C7: =YEAR(Data[[#This Row],[Date]]) -> 2005 | D7: ="Q "&CEILING(MONTH(Data[[#This Row],[Date]]),3)/3 -> Q 1 | E7: Jaspreet | F7: Good Fly | G7: 14750 | H7: 3200 | I7: =Data[[#This Row],[Profit]]/Data[[#This Row],[Amount]] -> 0.2169491525 | J7: North | N7: Ramesh | P7: Good Fly
B8: 2005-01-06 | C8: =YEAR(Data[[#This Row],[Date]]) -> 2005 | D8: ="Q "&CEILING(MONTH(Data[[#This Row],[Date]]),3)/3 -> Q 1 | E8: Ramesh | F8: Data Tronics | G8: 15000 | H8: 5280 | I8: =Data[[#This Row],[Profit]]/Data[[#This Row],[Amount]] -> 0.352 | J8: West | N8: Abhay | P8: Data Tronics
B9: 2005-01-09 | C9: =YEAR(Data[[#This Row],[Date]]) -> 2005 | D9: ="Q "&CEILING(MONTH(Data[[#This Row],[Date]]),3)/3 -> Q 1 | E9: Ramesh | F9: VCC | G9: 13550 | H9: 2180 | I9: =Data[[#This Row],[Profit]]/Data[[#This Row],[Amount]] -> 0.1608856089 | J9: East | N9: Anshika | P9: MNTL
B10: 2005-01-11 | C10: =YEAR(Data[[#This Row],[Date]]) -> 2005 | D10: ="Q "&CEILING(MONTH(Data[[#This Row],[Date]]),3)/3 -> Q 1 | E10: Abhay | F10: MNTL | G10: 12400 | H10: 2520 | I10: =Data[[#This Row],[Profit]]/Data[[#This Row],[Amount]] -> 0.2032258065 | J10: South | N10: Varsha | P10: Shyam & Sharma Co
B11: 2005-01-12 | C11: =YEAR(Data[[#This Row],[Date]]) -> 2005 | D11: ="Q "&CEILING(MONTH(Data[[#This Row],[Date]]),3)/3 -> Q 1 | E11: Anshika | F11: Shyam & Sharma Co | G11: 14300 | H11: 2860 | I11: =Data[[#This Row],[Profit]]/Data[[#This Row],[Amount]] -> 0.2 | J11: West | N11: Bruce | P11: Boston Consultants
B12: 2005-01-14 | C12: =YEAR(Data[[#This Row],[Date]]) -> 2005 | D12: ="Q "&CEILING(MONTH(Data[[#This Row],[Date]]),3)/3 -> Q 1 | E12: Charley | F12: Boston Consultants | G12: 10700 | H12: 4540 | I12: =Data[[#This Row],[Profit]]/Data[[#This Row],[Amount]] -> 0.4242990654 | J12: South | N12: James | P12: White Associates
B13: 2005-01-14 | C13: =YEAR(Data[[#This Row],[Date]]) -> 2005 | D13: ="Q "&CEILING(MONTH(Data[[#This Row],[Date]]),3)/3 -> Q 1 | E13: Varsha | F13: MNTL | G13: 10850 | H13: 2220 | I13: =Data[[#This Row],[Profit]]/Data[[#This Row],[Amount]] -> 0.2046082949 | J13: South | N13: Mark | P13: India Trotters
B14: 2005-01-26 | C14: =YEAR(Data[[#This Row],[Date]]) -> 2005 | D14: ="Q "&CEILING(MONTH(Data[[#This Row],[Date]]),3)/3 -> Q 1 | E14: Jaspreet | F14: White Associates | G14: 13150 | H14: 5220 | I14: =Data[[#This Row],[Profit]]/Data[[#This Row],[Amount]] -> 0.3969581749 | J14: East | N14: Veronica | P14: Jindle Power Works
B15: 2005-01-29 | C15: =YEAR(Data[[#This Row],[Date]]) -> 2005 | D15: ="Q "&CEILING(MONTH(Data[[#This Row],[Date]]),3)/3 -> Q 1 | E15: Bruce | F15: VCC | G15: 12350 | H15: 3980 | I15: =Data[[#This Row],[Profit]]/Data[[#This Row],[Amount]] -> 0.3222672065 | J15: West | N15: Swati | P15: Shah Associates
B16: 2005-01-30 | C16: =YEAR(Data[[#This Row],[Date]]) -> 2005 | D16: ="Q "&CEILING(MONTH(Data[[#This Row],[Date]]),3)/3 -> Q 1 | E16: Varsha | F16: MNTL | G16: 11050 | H16: 4280 | I16: =Data[[#This Row],[Profit]]/Data[[#This Row],[Amount]] -> 0.3873303167 | J16: South | N16: Rajat | P16: Namint Enterprises
B17: 2005-02-04 | C17: =YEAR(Data[[#This Row],[Date]]) -> 2005 | D17: ="Q "&CEILING(MONTH(Data[[#This Row],[Date]]),3)/3 -> Q 1 | E17: Charley | F17: India Trotters | G17: 13350 | H17: 2760 | I17: =Data[[#This Row],[Profit]]/Data[[#This Row],[Amount]] -> 0.206741573 | J17: East
B18: 2005-02-05 | C18: =YEAR(Data[[#This Row],[Date]]) -> 2005 | D18: ="Q "&CEILING(MONTH(Data[[#This Row],[Date]]),3)/3 -> Q 1 | E18: Anshika | F18: Data Tronics | G18: 12550 | H18: 4640 | I18: =Data[[#This Row],[Profit]]/Data[[#This Row],[Amount]] -> 0.3697211155 | J18: East
B19: 2005-02-08 | C19: =YEAR(Data[[#This Row],[Date]]) -> 2005 | D19: ="Q "&CEILING(MONTH(Data[[#This Row],[Date]]),3)/3 -> Q 1 | E19: James | F19: Boston Consultants | G19: 12800 | H19: 2940 | I19: =Data[[#This Row],[Profit]]/Data[[#This Row],[Amount]] -> 0.2296875 | J19: East
B20: 2005-02-09 | C20: =YEAR(Data[[#This Row],[Date]]) -> 2005 | D20: ="Q "&CEILING(MONTH(Data[[#This Row],[Date]]),3)/3 -> Q 1 | E20: Charley | F20: MNTL | G20: 10100 | H20: 2780 | I20: =Data[[#This Row],[Profit]]/Data[[#This Row],[Amount]] -> 0.2752475248 | J20: West
B21: 2005-02-13 | C21: =YEAR(Data[[#This Row],[Date]]) -> 2005 | D21: ="Q "&CEILING(MONTH(Data[[#This Row],[Date]]),3)/3 -> Q 1 | E21: Mark | F21: Data Tronics | G21: 13750 | H21: 3160 | I21: =Data[[#This Row],[Profit]]/Data[[#This Row],[Amount]] -> 0.2298181818 | J21: South
B22: 2005-02-14 | C22: =YEAR(Data[[#This Row],[Date]]) -> 2005 | D22: ="Q "&CEILING(MONTH(Data[[#This Row],[Date]]),3)/3 -> Q 1 | E22: Varsha | F22: Jindle Power Works | G22: 12500 | H22: 5200 | I22: =Data[[#This Row],[Profit]]/Data[[#This Row],[Amount]] -> 0.416 | J22: West
B23: 2005-02-16 | C23: =YEAR(Data[[#This Row],[Date]]) -> 2005 | D23: ="Q "&CEILING(MONTH(Data[[#This Row],[Date]]),3)/3 -> Q 1 | E23: Bruce | F23: MNTL | G23: 13500 | H23: 2080 | I23: =Data[[#This Row],[Profit]]/Data[[#This Row],[Amount]] -> 0.1540740741 | J23: West
B24: 2005-02-18 | C24: =YEAR(Data[[#This Row],[Date]]) -> 2005 | D24: ="Q "&CEILING(MONTH(Data[[#This Row],[Date]]),3)/3 -> Q 1 | E24: Mark | F24: Sharma & Co | G24: 13400 | H24: 4240 | I24: =Data[[#This Row],[Profit]]/Data[[#This Row],[Amount]] -> 0.3164179104 | J24: South
B25: 2005-02-20 | C25: =YEAR(Data[[#This Row],[Date]]) -> 2005 | D25: ="Q "&CEILING(MONTH(Data[[#This Row],[Date]]),3)/3 -> Q 1 | E25: Ramesh | F25: Shah Associates | G25: 14250 | H25: 2980 | I25: =Data[[#This Row],[Profit]]/Data[[#This Row],[Amount]] -> 0.209122807 | J25: South
B26: 2005-02-20 | C26: =YEAR(Data[[#This Row],[Date]]) -> 2005 | D26: ="Q "&CEILING(MONTH(Data[[#This Row],[Date]]),3)/3 -> Q 1 | E26: James | F26: Jindle Power Works | G26: 13050 | H26: 5220 | I26: =Data[[#This Row],[Profit]]/Data[[#This Row],[Amount]] -> 0.4 | J26: East
B27: 2005-02-24 | C27: =YEAR(Data[[#This Row],[Date]]) -> 2005 | D27: ="Q "&CEILING(MONTH(Data[[#This Row],[Date]]),3)/3 -> Q 1 | E27: Charley | F27: Shyam & Sharma Co | G27: 12950 | H27: 3740 | I27: =Data[[#This Row],[Profit]]/Data[[#This Row],[Amount]] -> 0.2888030888 | J27: West
B28: 2005-03-03 | C28: =YEAR(Data[[#This Row],[Date]]) -> 2005 | D28: ="Q "&CEILING(MONTH(Data[[#This Row],[Date]]),3)/3 -> Q 1 | E28: James | F28: Data Tronics | G28: 11800 | H28: 4120 | I28: =Data[[#This Row],[Profit]]/Data[[#This Row],[Amount]] -> 0.3491525424 | J28: South
B29: 2005-03-09 | C29: =YEAR(Data[[#This Row],[Date]]) -> 2005 | D29: ="Q "&CEILING(MONTH(Data[[#This Row],[Date]]),3)/3 -> Q 1 | E29: Bruce | F29: Boston Consultants | G29: 14400 | H29: 4660 | I29: =Data[[#This Row],[Profit]]/Data[[#This Row],[Amount]] -> 0.3236111111 | J29: South
B30: 2005-03-12 | C30: =YEAR(Data[[#This Row],[Date]]) -> 2005 | D30: ="Q "&CEILING(MONTH(Data[[#This Row],[Date]]),3)/3 -> Q 1 | E30: Ramesh | F30: Jindle Power Works | G30: 13550 | H30: 4540 | I30: =Data[[#This Row],[Profit]]/Data[[#This Row],[Amount]] -> 0.3350553506 | J30: West
B31: 2005-03-13 | C31: =YEAR(Data[[#This Row],[Date]]) -> 2005 | D31: ="Q "&CEILING(MONTH(Data[[#This Row],[Date]]),3)/3 -> Q 1 | E31: Jaspreet | F31: Jindle Power Works | G31: 13350 | H31: 4160 | I31: =Data[[#This Row],[Profit]]/Data[[#This Row],[Amount]] -> 0.3116104869 | J31: East
B32: 2005-03-18 | C32: =YEAR(Data[[#This Row],[Date]]) -> 2005 | D32: ="Q "&CEILING(MONTH(Data[[#This Row],[Date]]),3)/3 -> Q 1 | E32: Mark | F32: India Trotters | G32: 14700 | H32: 3180 | I32: =Data[[#This Row],[Profit]]/Data[[#This Row],[Amount]] -> 0.2163265306 | J32: East
B33: 2005-03-19 | C33: =YEAR(Data[[#This Row],[Date]]) -> 2005 | D33: ="Q "&CEILING(MONTH(Data[[#This Row],[Date]]),3)/3 -> Q 1 | E33: Veronica | F33: Jindle Power Works | G33: 11500 | H33: 2620 | I33: =Data[[#This Row],[Profit]]/Data[[#This Row],[Amount]] -> 0.227826087 | J33: East
B34: 2005-03-24 | C34: =YEAR(Data[[#This Row],[Date]]) -> 2005 | D34: ="Q "&CEILING(MONTH(Data[[#This Row],[Date]]),3)/3 -> Q 1 | E34: Veronica | F34: Jindle Power Works | G34: 14500 | H34: 5260 | I34: =Data[[#This Row],[Profit]]/Data[[#This Row],[Amount]] -> 0.3627586207 | J34: South
B35: 2005-03-24 | C35: =YEAR(Data[[#This Row],[Date]]) -> 2005 | D35: ="Q "&CEILING(MONTH(Data[[#This Row],[Date]]),3)/3 -> Q 1 | E35: Anshika | F35: White Associates | G35: 13450 | H35: 5600 | I35: =Data[[#This Row],[Profit]]/Data[[#This Row],[Amount]] -> 0.4163568773 | J35: West
B36: 2005-04-10 | C36: =YEAR(Data[[#This Row],[Date]]) -> 2005 | D36: ="Q "&CEILING(MONTH(Data[[#This Row],[Date]]),3)/3 -> Q 2 | E36: Swati | F36: Sharma & Co | G36: 14650 | H36: 3240 | I36: =Data[[#This Row],[Profit]]/Data[[#This Row],[Amount]] -> 0.2211604096 | J36: East
B37: 2005-04-16 | C37: =YEAR(Data[[#This Row],[Date]]) -> 2005 | D37: ="Q "&CEILING(MONTH(Data[[#This Row],[Date]]),3)/3 -> Q 2 | E37: Bruce | F37: Good Fly | G37: 12700 | H37: 5660 | I37: =Data[[#This Row],[Profit]]/Data[[#This Row],[Amount]] -> 0.4456692913 | J37: West
B38: 2005-04-18 | C38: =YEAR(Data[[#This Row],[Date]]) -> 2005 | D38: ="Q "&CEILING(MONTH(Data[[#This Row],[Date]]),3)/3 -> Q 2 | E38: Varsha | F38: White Associates | G38: 10400 | H38: 4260 | I38: =Data[[#This Row],[Profit]]/Data[[#This Row],[Amount]] -> 0.4096153846 | J38: South
B39: 2005-04-18 | C39: =YEAR(Data[[#This Row],[Date]]) -> 2005 | D39: ="Q "&CEILING(MONTH(Data[[#This Row],[Date]]),3)/3 -> Q 2 | E39: Charley | F39: Shah Associates | G39: 11600 | H39: 2520 | I39: =Data[[#This Row],[Profit]]/Data[[#This Row],[Amount]] -> 0.2172413793 | J39: South
B40: 2005-04-18 | C40: =YEAR(Data[[#This Row],[Date]]) -> 2005 | D40: ="Q "&CEILING(MONTH(Data[[#This Row],[Date]]),3)/3 -> Q 2 | E40: Varsha | F40: India Trotters | G40: 11500 | H40: 3640 | I40: =Data[[#This Row],[Profit]]/Data[[#This Row],[Amount]] -> 0.3165217391 | J40: North
B41: 2005-04-19 | C41: =YEAR(Data[[#This Row],[Date]]) -> 2005 | D41: ="Q "&CEILING(MONTH(Data[[#This Row],[Date]]),3)/3 -> Q 2 | E41: Abhay | F41: VCC | G41: 11150 | H41: 5320 | I41: =Data[[#This Row],[Profit]]/Data[[#This Row],[Amount]] -> 0.4771300448 | J41: North
B42: 2005-04-23 | C42: =YEAR(Data[[#This Row],[Date]]) -> 2005 | D42: ="Q "&CEILING(MONTH(Data[[#This Row],[Date]]),3)/3 -> Q 2 | E42: Anshika | F42: VCC | G42: 14700 | H42: 5680 | I42: =Data[[#This Row],[Profit]]/Data[[#This Row],[Amount]] -> 0.3863945578 | J42: South
B43: 2005-04-24 | C43: =YEAR(Data[[#This Row],[Date]]) -> 2005 | D43: ="Q "&CEILING(MONTH(Data[[#This Row],[Date]]),3)/3 -> Q 2 | E43: Anshika | F43: Shyam & Sharma Co | G43: 11200 | H43: 4420 | I43: =Data[[#This Row],[Profit]]/Data[[#This Row],[Amount]] -> 0.3946428571 | J43: East
B44: 2005-04-29 | C44: =YEAR(Data[[#This Row],[Date]]) -> 2005 | D44: ="Q "&CEILING(MONTH(Data[[#This Row],[Date]]),3)/3 -> Q 2 | E44: Swati | F44: India Trotters | G44: 14750 | H44: 5280 | I44: =Data[[#This Row],[Profit]]/Data[[#This Row],[Amount]] -> 0.3579661017 | J44: South
B45: 2005-05-08 | C45: =YEAR(Data[[#This Row],[Date]]) -> 2005 | D45: ="Q "&CEILING(MONTH(Data[[#This Row],[Date]]),3)/3 -> Q 2 | E45: Rajat | F45: Good Fly | G45: 11650 | H45: 2820 | I45: =Data[[#This Row],[Profit]]/Data[[#This Row],[Amount]] -> 0.2420600858 | J45: East
B46: 2005-05-09 | C46: =YEAR(Data[[#This Row],[Date]]) -> 2005 | D46: ="Q "&CEILING(MONTH(Data[[#This Row],[Date]]),3)/3 -> Q 2 | E46: Mark | F46: White Associates | G46: 11750 | H46: 4280 | I46: =Data[[#This Row],[Profit]]/Data[[#This Row],[Amount]] -> 0.3642553191 | J46: West
B47: 2005-05-10 | C47: =YEAR(Data[[#This Row],[Date]]) -> 2005 | D47: ="Q "&CEILING(MONTH(Data[[#This Row],[Date]]),3)/3 -> Q 2 | E47: Swati | F47: India Trotters | G47: 12500 | H47: 5060 | I47: =Data[[#This Row],[Profit]]/Data[[#This Row],[Amount]] -> 0.4048 | J47: North
B48: 2005-05-11 | C48: =YEAR(Data[[#This Row],[Date]]) -> 2005 | D48: ="Q "&CEILING(MONTH(Data[[#This Row],[Date]]),3)/3 -> Q 2 | E48: Bruce | F48: Namint Enterprises | G48: 14000 | H48: 2000 | I48: =Data[[#This Row],[Profit]]/Data[[#This Row],[Amount]] -> 0.1428571429 | J48: West
B49: 2005-05-23 | C49: =YEAR(Data[[#This Row],[Date]]) -> 2005 | D49: ="Q "&CEILING(MONTH(Data[[#This Row],[Date]]),3)/3 -> Q 2 | E49: Veronica | F49: Namint Enterprises | G49: 12600 | H49: 3900 | I49: =Data[[#This Row],[Profit]]/Data[[#This Row],[Amount]] -> 0.3095238095 | J49: North
B50: 2005-05-26 | C50: =YEAR(Data[[#This Row],[Date]]) -> 2005 | D50: ="Q "&CEILING(MONTH(Data[[#This Row],[Date]]),3)/3 -> Q 2 | E50: Abhay | F50: MNTL | G50: 14550 | H50: 5520 | I50: =Data[[#This Row],[Profit]]/Data[[#This Row],[Amount]] -> 0.3793814433 | J50: South
B51: 2005-05-26 | C51: =YEAR(Data[[#This Row],[Date]]) -> 2005 | D51: ="Q "&CEILING(MONTH(Data[[#This Row],[Date]]),3)/3 -> Q 2 | E51: Veronica | F51: Shyam & Sharma Co | G51: 14650 | H51: 2360 | I51: =Data[[#This Row],[Profit]]/Data[[#This Row],[Amount]] -> 0.1610921502 | J51: East
B52: 2005-05-27 | C52: =YEAR(Data[[#This Row],[Date]]) -> 2005 | D52: ="Q "&CEILING(MONTH(Data[[#This Row],[Date]]),3)/3 -> Q 2 | E52: Bruce | F52: Jindle Power Works | G52: 12750 | H52: 5520 | I52: =Data[[#This Row],[Profit]]/Data[[#This Row],[Amount]] -> 0.4329411765 | J52: West
B53: 2005-05-27 | C53: =YEAR(Data[[#This Row],[Date]]) -> 2005 | D53: ="Q "&CEILING(MONTH(Data[[#This Row],[Date]]),3)/3 -> Q 2 | E53: Bruce | F53: Namint Enterprises | G53: 14150 | H53: 4420 | I53: =Data[[#This Row],[Profit]]/Data[[#This Row],[Amount]] -> 0.3123674912 | J53: East
B54: 2005-05-28 | C54: =YEAR(Data[[#This Row],[Date]]) -> 2005 | D54: ="Q "&CEILING(MONTH(Data[[#This Row],[Date]]),3)/3 -> Q 2 | E54: Mark | F54: Jindle Power Works | G54: 14300 | H54: 3920 | I54: =Data[[#This Row],[Profit]]/Data[[#This Row],[Amount]] -> 0.2741258741 | J54: West
B55: 2005-05-30 | C55: =YEAR(Data[[#This Row],[Date]]) -> 2005 | D55: ="Q "&CEILING(MONTH(Data[[#This Row],[Date]]),3)/3 -> Q 2 | E55: Bruce | F55: Data Tronics | G55: 11350 | H55: 5340 | I55: =Data[[#This Row],[Profit]]/Data[[#This Row],[Amount]] -> 0.4704845815 | J55: North
B56: 2005-06-02 | C56: =YEAR(Data[[#This Row],[Date]]) -> 2005 | D56: ="Q "&CEILING(MONTH(Data[[#This Row],[Date]]),3)/3 -> Q 2 | E56: Mark | F56: Namint Enterprises | G56: 10450 | H56: 2720 | I56: =Data[[#This Row],[Profit]]/Data[[#This Row],[Amount]] -> 0.2602870813 | J56: West
B57: 2005-06-06 | C57: =YEAR(Data[[#This Row],[Date]]) -> 2005 | D57: ="Q "&CEILING(MONTH(Data[[#This Row],[Date]]),3)/3 -> Q 2 | E57: Anshika | F57: Boston Consultants | G57: 11900 | H57: 4700 | I57: =Data[[#This Row],[Profit]]/Data[[#This Row],[Amount]] -> 0.3949579832 | J57: West
B58: 2005-06-06 | C58: =YEAR(Data[[#This Row],[Date]]) -> 2005 | D58: ="Q "&CEILING(MONTH(Data[[#This Row],[Date]]),3)/3 -> Q 2 | E58: Abhay | F58: MNTL | G58: 12850 | H58: 2720 | I58: =Data[[#This Row],[Profit]]/Data[[#This Row],[Amount]] -> 0.2116731518 | J58: West
B59: 2005-06-07 | C59: =YEAR(Data[[#This Row],[Date]]) -> 2005 | D59: ="Q "&CEILING(MONTH(Data[[#This Row],[Date]]),3)/3 -> Q 2 | E59: Rajat | F59: Shah Associates | G59: 10100 | H59: 3380 | I59: =Data[[#This Row],[Profit]]/Data[[#This Row],[Amount]] -> 0.3346534653 | J59: West
B60: 2005-06-11 | C60: =YEAR(Data[[#This Row],[Date]]) -> 2005 | D60: ="Q "&CEILING(MONTH(Data[[#This Row],[Date]]),3)/3 -> Q 2 | E60: Rajat | F60: India Trotters | G60: 10950 | H60: 5600 | I60: =Data[[#This Row],[Profit]]/Data[[#This Row],[Amount]] -> 0.5114155251 | J60: North
B61: 2005-06-12 | C61: =YEAR(Data[[#This Row],[Date]]) -> 2005 | D61: ="Q "&CEILING(MONTH(Data[[#This Row],[Date]]),3)/3 -> Q 2 | E61: Abhay | F61: Jindle Power Works | G61: 10250 | H61: 5660 | I61: =Data[[#This Row],[Profit]]/Data[[#This Row],[Amount]] -> 0.552195122 | J61: East
B62: 2005-06-13 | C62: =YEAR(Data[[#This Row],[Date]]) -> 2005 | D62: ="Q "&CEILING(MONTH(Data[[#This Row],[Date]]),3)/3 -> Q 2 | E62: James | F62: India Trotters | G62: 13200 | H62: 5580 | I62: =Data[[#This Row],[Profit]]/Data[[#This Row],[Amount]] -> 0.4227272727 | J62: East
B63: 2005-06-13 | C63: =YEAR(Data[[#This Row],[Date]]) -> 2005 | D63: ="Q "&CEILING(MONTH(Data[[#This Row],[Date]]),3)/3 -> Q 2 | E63: Rajat | F63: White Associates | G63: 11850 | H63: 3220 | I63: =Data[[#This Row],[Profit]]/Data[[#This Row],[Amount]] -> 0.2717299578 | J63: North
B64: 2005-06-15 | C64: =YEAR(Data[[#This Row],[Date]]) -> 2005 | D64: ="Q "&CEILING(MONTH(Data[[#This Row],[Date]]),3)/3 -> Q 2 | E64: Bruce | F64: MNTL | G64: 13600 | H64: 4020 | I64: =Data[[#This Row],[Profit]]/Data[[#This Row],[Amount]] -> 0.2955882353 | J64: West
B65: 2005-06-15 | C65: =YEAR(Data[[#This Row],[Date]]) -> 2005 | D65: ="Q "&CEILING(MONTH(Data[[#This Row],[Date]]),3)/3 -> Q 2 | E65: James | F65: White Associates | G65: 11900 | H65: 2700 | I65: =Data[[#This Row],[Profit]]/Data[[#This Row],[Amount]] -> 0.2268907563 | J65: East
B66: 2005-06-16 | C66: =YEAR(Data[[#This Row],[Date]]) -> 2005 | D66: ="Q "&CEILING(MONTH(Data[[#This Row],[Date]]),3)/3 -> Q 2 | E66: Rajat | F66: Good Fly | G66: 10300 | H66: 5420 | I66: =Data[[#This Row],[Profit]]/Data[[#This Row],[Amount]] -> 0.5262135922 | J66: North
B67: 2005-06-21 | C67: =YEAR(Data[[#This Row],[Date]]) -> 2005 | D67: ="Q "&CEILING(MONTH(Data[[#This Row],[Date]]),3)/3 -> Q 2 | E67: Bruce | F67: VCC | G67: 10500 | H67: 4700 | I67: =Data[[#This Row],[Profit]]/Data[[#This Row],[Amount]] -> 0.4476190476 | J67: South
B68: 2005-06-22 | C68: =YEAR(Data[[#This Row],[Date]]) -> 2005 | D68: ="Q "&CEILING(MONTH(Data[[#This Row],[Date]]),3)/3 -> Q 2 | E68: Charley | F68: MNTL | G68: 15000 | H68: 3080 | I68: =Data[[#This Row],[Profit]]/Data[[#This Row],[Amount]] -> 0.2053333333 | J68: North
B69: 2005-06-23 | C69: =YEAR(Data[[#This Row],[Date]]) -> 2005 | D69: ="Q "&CEILING(MONTH(Data[[#This Row],[Date]]),3)/3 -> Q 2 | E69: Bruce | F69: Data Tronics | G69: 13450 | H69: 2600 | I69: =Data[[#This Row],[Profit]]/Data[[#This Row],[Amount]] -> 0.1933085502 | J69: West
B70: 2005-06-25 | C70: =YEAR(Data[[#This Row],[Date]]) -> 2005 | D70: ="Q "&CEILING(MONTH(Data[[#This Row],[Date]]),3)/3 -> Q 2 | E70: Rajat | F70: White Associates | G70: 14200 | H70: 5240 | I70: =Data[[#This Row],[Profit]]/Data[[#This Row],[Amount]] -> 0.3690140845 | J70: South
B71: 2005-06-27 | C71: =YEAR(Data[[#This Row],[Date]]) -> 2005 | D71: ="Q "&CEILING(MONTH(Data[[#This Row],[Date]]),3)/3 -> Q 2 | E71: Rajat | F71: White Associates | G71: 11250 | H71: 5220 | I71: =Data[[#This Row],[Profit]]/Data[[#This Row],[Amount]] -> 0.464 | J71: East
B72: 2005-06-30 | C72: =YEAR(Data[[#This Row],[Date]]) -> 2005 | D72: ="Q "&CEILING(MONTH(Data[[#This Row],[Date]]),3)/3 -> Q 2 | E72: Ramesh | F72: Namint Enterprises | G72: 14150 | H72: 3300 | I72: =Data[[#This Row],[Profit]]/Data[[#This Row],[Amount]] -> 0.2332155477 | J72: North
B73: 2005-07-06 | C73: =YEAR(Data[[#This Row],[Date]]) -> 2005 | D73: ="Q "&CEILING(MONTH(Data[[#This Row],[Date]]),3)/3 -> Q 3 | E73: Mark | F73: Jindle Power Works | G73: 13650 | H73: 5100 | I73: =Data[[#This Row],[Profit]]/Data[[#This Row],[Amount]] -> 0.3736263736 | J73: West
B74: 2005-07-08 | C74: =YEAR(Data[[#This Row],[Date]]) -> 2005 | D74: ="Q "&CEILING(MONTH(Data[[#This Row],[Date]]),3)/3 -> Q 3 | E74: Veronica | F74: Data Tronics | G74: 14600 | H74: 5280 | I74: =Data[[#This Row],[Profit]]/Data[[#This Row],[Amount]] -> 0.3616438356 | J74: East
B75: 2005-07-08 | C75: =YEAR(Data[[#This Row],[Date]]) -> 2005 | D75: ="Q "&CEILING(MONTH(Data[[#This Row],[Date]]),3)/3 -> Q 3 | E75: Swati | F75: Good Fly | G75: 10150 | H75: 3560 | I75: =Data[[#This Row],[Profit]]/Data[[#This Row],[Amount]] -> 0.3507389163 | J75: South
B76: 2005-07-21 | C76: =YEAR(Data[[#This Row],[Date]]) -> 2005 | D76: ="Q "&CEILING(MONTH(Data[[#This Row],[Date]]),3)/3 -> Q 3 | E76: Varsha | F76: Shyam & Sharma Co | G76: 11850 | H76: 4480 | I76: =Data[[#This Row],[Profit]]/Data[[#This Row],[Amount]] -> 0.3780590717 | J76: South
B77: 2005-07-26 | C77: =YEAR(Data[[#This Row],[Date]]) -> 2005 | D77: ="Q "&CEILING(MONTH(Data[[#This Row],[Date]]),3)/3 -> Q 3 | E77: Bruce | F77: White Associates | G77: 12400 | H77: 5500 | I77: =Data[[#This Row],[Profit]]/Data[[#This Row],[Amount]] -> 0.4435483871 | J77: South
B78: 2005-07-27 | C78: =YEAR(Data[[#This Row],[Date]]) -> 2005 | D78: ="Q "&CEILING(MONTH(Data[[#This Row],[Date]]),3)/3 -> Q 3 | E78: Bruce | F78: Shah Associates | G78: 12800 | H78: 4200 | I78: =Data[[#This Row],[Profit]]/Data[[#This Row],[Amount]] -> 0.328125 | J78: North
B79: 2005-07-31 | C79: =YEAR(Data[[#This Row],[Date]]) -> 2005 | D79: ="Q "&CEILING(MONTH(Data[[#This Row],[Date]]),3)/3 -> Q 3 | E79: Abhay | F79: Namint Enterprises | G79: 13600 | H79: 4320 | I79: =Data[[#This Row],[Profit]]/Data[[#This Row],[Amount]] -> 0.3176470588 | J79: South
B80: 2005-07-31 | C80: =YEAR(Data[[#This Row],[Date]]) -> 2005 | D80: ="Q "&CEILING(MONTH(Data[[#This Row],[Date]]),3)/3 -> Q 3 | E80: Anshika | F80: MNTL | G80: 13900 | H80: 3800 | I80: =Data[[#This Row],[Profit]]/Data[[#This Row],[Amount]] -> 0.273381295 | J80: West
B81: 2005-08-02 | C81: =YEAR(Data[[#This Row],[Date]]) -> 2005 | D81: ="Q "&CEILING(MONTH(Data[[#This Row],[Date]]),3)/3 -> Q 3 | E81: Jaspreet | F81: Boston Consultants | G81: 10550 | H81: 2100 | I81: =Data[[#This Row],[Profit]]/Data[[#This Row],[Amount]] -> 0.1990521327 | J81: East
B82: 2005-08-08 | C82: =YEAR(Data[[#This Row],[Date]]) -> 2005 | D82: ="Q "&CEILING(MONTH(Data[[#This Row],[Date]]),3)/3 -> Q 3 | E82: Mark | F82: Sharma & Co | G82: 13350 | H82: 2900 | I82: =Data[[#This Row],[Profit]]/Data[[#This Row],[Amount]] -> 0.2172284644 | J82: West
B83: 2005-08-09 | C83: =YEAR(Data[[#This Row],[Date]]) -> 2005 | D83: ="Q "&CEILING(MONTH(Data[[#This Row],[Date]]),3)/3 -> Q 3 | E83: Abhay | F83: Namint Enterprises | G83: 10000 | H83: 3780 | I83: =Data[[#This Row],[Profit]]/Data[[#This Row],[Amount]] -> 0.378 | J83: East
B84: 2005-08-13 | C84: =YEAR(Data[[#This Row],[Date]]) -> 2005 | D84: ="Q "&CEILING(MONTH(Data[[#This Row],[Date]]),3)/3 -> Q 3 | E84: Jaspreet | F84: Jindle Power Works | G84: 10200 | H84: 4420 | I84: =Data[[#This Row],[Profit]]/Data[[#This Row],[Amount]] -> 0.4333333333 | J84: East
B85: 2005-08-17 | C85: =YEAR(Data[[#This Row],[Date]]) -> 2005 | D85: ="Q "&CEILING(MONTH(Data[[#This Row],[Date]]),3)/3 -> Q 3 | E85: Ramesh | F85: Shah Associates | G85: 14100 | H85: 5320 | I85: =Data[[#This Row],[Profit]]/Data[[#This Row],[Amount]] -> 0.3773049645 | J85: South
B86: 2005-08-18 | C86: =YEAR(Data[[#This Row],[Date]]) -> 2005 | D86: ="Q "&CEILING(MONTH(Data[[#This Row],[Date]]),3)/3 -> Q 3 | E86: Anshika | F86: VCC | G86: 13400 | H86: 3580 | I86: =Data[[#This Row],[Profit]]/Data[[#This Row],[Amount]] -> 0.2671641791 | J86: South
B87: 2005-08-21 | C87: =YEAR(Data[[#This Row],[Date]]) -> 2005 | D87: ="Q "&CEILING(MONTH(Data[[#This Row],[Date]]),3)/3 -> Q 3 | E87: Ramesh | F87: Data Tronics | G87: 10600 | H87: 4680 | I87: =Data[[#This Row],[Profit]]/Data[[#This Row],[Amount]] -> 0.441509434 | J87: East
B88: 2005-08-23 | C88: =YEAR(Data[[#This Row],[Date]]) -> 2005 | D88: ="Q "&CEILING(MONTH(Data[[#This Row],[Date]]),3)/3 -> Q 3 | E88: Abhay | F88: White Associates | G88: 14600 | H88: 3680 | I88: =Data[[#This Row],[Profit]]/Data[[#This Row],[Amount]] -> 0.2520547945 | J88: South
B89: 2005-08-25 | C89: =YEAR(Data[[#This Row],[Date]]) -> 2005 | D89: ="Q "&CEILING(MONTH(Data[[#This Row],[Date]]),3)/3 -> Q 3 | E89: Bruce | F89: Shyam & Sharma Co | G89: 13850 | H89: 5420 | I89: =Data[[#This Row],[Profit]]/Data[[#This Row],[Amount]] -> 0.3913357401 | J89: West
B90: 2005-08-30 | C90: =YEAR(Data[[#This Row],[Date]]) -> 2005 | D90: ="Q "&CEILING(MONTH(Data[[#This Row],[Date]]),3)/3 -> Q 3 | E90: Varsha | F90: VCC | G90: 10900 | H90: 4960 | I90: =Data[[#This Row],[Profit]]/Data[[#This Row],[Amount]] -> 0.4550458716 | J90: South
B91: 2005-08-30 | C91: =YEAR(Data[[#This Row],[Date]]) -> 2005 | D91: ="Q "&CEILING(MONTH(Data[[#This Row],[Date]]),3)/3 -> Q 3 | E91: Anshika | F91: Shyam & Sharma Co | G91: 13200 | H91: 4100 | I91: =Data[[#This Row],[Profit]]/Data[[#This Row],[Amount]] -> 0.3106060606 | J91: North
B92: 2005-09-04 | C92: =YEAR(Data[[#This Row],[Date]]) -> 2005 | D92: ="Q "&CEILING(MONTH(Data[[#This Row],[Date]]),3)/3 -> Q 3 | E92: Anshika | F92: Shyam & Sharma Co | G92: 10850 | H92: 5520 | I92: =Data[[#This Row],[Profit]]/Data[[#This Row],[Amount]] -> 0.5087557604 | J92: East
B93: 2005-09-05 | C93: =YEAR(Data[[#This Row],[Date]]) -> 2005 | D93: ="Q "&CEILING(MONTH(Data[[#This Row],[Date]]),3)/3 -> Q 3 | E93: James | F93: Shah Associates | G93: 10700 | H93: 2080 | I93: =Data[[#This Row],[Profit]]/Data[[#This Row],[Amount]] -> 0.1943925234 | J93: East
B94: 2005-09-07 | C94: =YEAR(Data[[#This Row],[Date]]) -> 2005 | D94: ="Q "&CEILING(MONTH(Data[[#This Row],[Date]]),3)/3 -> Q 3 | E94: Bruce | F94: VCC | G94: 11400 | H94: 3500 | I94: =Data[[#This Row],[Profit]]/Data[[#This Row],[Amount]] -> 0.3070175439 | J94: West
B95: 2005-09-11 | C95: =YEAR(Data[[#This Row],[Date]]) -> 2005 | D95: ="Q "&CEILING(MONTH(Data[[#This Row],[Date]]),3)/3 -> Q 3 | E95: Rajat | F95: Namint Enterprises | G95: 11600 | H95: 2060 | I95: =Data[[#This Row],[Profit]]/Data[[#This Row],[Amount]] -> 0.1775862069 | J95: East
B96: 2005-09-16 | C96: =YEAR(Data[[#This Row],[Date]]) -> 2005 | D96: ="Q "&CEILING(MONTH(Data[[#This Row],[Date]]),3)/3 -> Q 3 | E96: Bruce | F96: Shah Associates | G96: 14000 | H96: 2420 | I96: =Data[[#This Row],[Profit]]/Data[[#This Row],[Amount]] -> 0.1728571429 | J96: North
B97: 2005-09-17 | C97: =YEAR(Data[[#This Row],[Date]]) -> 2005 | D97: ="Q "&CEILING(MONTH(Data[[#This Row],[Date]]),3)/3 -> Q 3 | E97: Anshika | F97: Jindle Power Works | G97: 14300 | H97: 3220 | I97: =Data[[#This Row],[Profit]]/Data[[#This Row],[Amount]] -> 0.2251748252 | J97: East
B98: 2005-09-19 | C98: =YEAR(Data[[#This Row],[Date]]) -> 2005 | D98: ="Q "&CEILING(MONTH(Data[[#This Row],[Date]]),3)/3 -> Q 3 | E98: Swati | F98: Boston Consultants | G98: 12350 | H98: 3620 | I98: =Data[[#This Row],[Profit]]/Data[[#This Row],[Amount]] -> 0.2931174089 | J98: South
B99: 2005-09-22 | C99: =YEAR(Data[[#This Row],[Date]]) -> 2005 | D99: ="Q "&CEILING(MONTH(Data[[#This Row],[Date]]),3)/3 -> Q 3 | E99: Charley | F99: Jindle Power Works | G99: 12300 | H99: 3420 | I99: =Data[[#This Row],[Profit]]/Data[[#This Row],[Amount]] -> 0.2780487805 | J99: East
B100: 2005-09-22 | C100: =YEAR(Data[[#This Row],[Date]]) -> 2005 | D100: ="Q "&CEILING(MONTH(Data[[#This Row],[Date]]),3)/3 -> Q 3 | E100: Anshika | F100: India Trotters | G100: 10400 | H100: 3540 | I100: =Data[[#This Row],[Profit]]/Data[[#This Row],[Amount]] -> 0.3403846154 | J100: East
B101: 2005-09-23 | C101: =YEAR(Data[[#This Row],[Date]]) -> 2005 | D101: ="Q "&CEILING(MONTH(Data[[#This Row],[Date]]),3)/3 -> Q 3 | E101: James | F101: MNTL | G101: 11950 | H101: 2120 | I101: =Data[[#This Row],[Profit]]/Data[[#This Row],[Amount]] -> 0.1774058577 | J101: South
B102: 2005-10-02 | C102: =YEAR(Data[[#This Row],[Date]]) -> 2005 | D102: ="Q "&CEILING(MONTH(Data[[#This Row],[Date]]),3)/3 -> Q 4 | E102: Veronica | F102: India Trotters | G102: 11250 | H102: 4960 | I102: =Data[[#This Row],[Profit]]/Data[[#This Row],[Amount]] -> 0.4408888889 | J102: West
B103: 2005-10-02 | C103: =YEAR(Data[[#This Row],[Date]]) -> 2005 | D103: ="Q "&CEILING(MONTH(Data[[#This Row],[Date]]),3)/3 -> Q 4 | E103: Mark | F103: White Associates | G103: 13450 | H103: 2240 | I103: =Data[[#This Row],[Profit]]/Data[[#This Row],[Amount]] -> 0.1665427509 | J103: East
B104: 2005-10-03 | C104: =YEAR(Data[[#This Row],[Date]]) -> 2005 | D104: ="Q "&CEILING(MONTH(Data[[#This Row],[Date]]),3)/3 -> Q 4 | E104: Anshika | F104: India Trotters | G104: 14500 | H104: 5460 | I104: =Data[[#This Row],[Profit]]/Data[[#This Row],[Amount]] -> 0.3765517241 | J104: North
B105: 2005-10-03 | C105: =YEAR(Data[[#This Row],[Date]]) -> 2005 | D105: ="Q "&CEILING(MONTH(Data[[#This Row],[Date]]),3)/3 -> Q 4 | E105: James | F105: Shyam & Sharma Co | G105: 10450 | H105: 2100 | I105: =Data[[#This Row],[Profit]]/Data[[#This Row],[Amount]] -> 0.2009569378 | J105: West
B106: 2005-10-05 | C106: =YEAR(Data[[#This Row],[Date]]) -> 2005 | D106: ="Q "&CEILING(MONTH(Data[[#This Row],[Date]]),3)/3 -> Q 4 | E106: Abhay | F106: Sharma & Co | G106: 13650 | H106: 5340 | I106: =Data[[#This Row],[Profit]]/Data[[#This Row],[Amount]] -> 0.3912087912 | J106: North
B107: 2005-10-07 | C107: =YEAR(Data[[#This Row],[Date]]) -> 2005 | D107: ="Q "&CEILING(MONTH(Data[[#This Row],[Date]]),3)/3 -> Q 4 | E107: Jaspreet | F107: India Trotters | G107: 11750 | H107: 2040 | I107: =Data[[#This Row],[Profit]]/Data[[#This Row],[Amount]] -> 0.1736170213 | J107: South
B108: 2005-10-07 | C108: =YEAR(Data[[#This Row],[Date]]) -> 2005 | D108: ="Q "&CEILING(MONTH(Data[[#This Row],[Date]]),3)/3 -> Q 4 | E108: Mark | F108: Namint Enterprises | G108: 13700 | H108: 5700 | I108: =Data[[#This Row],[Profit]]/Data[[#This Row],[Amount]] -> 0.4160583942 | J108: North
B109: 2005-10-09 | C109: =YEAR(Data[[#This Row],[Date]]) -> 2005 | D109: ="Q "&CEILING(MONTH(Data[[#This Row],[Date]]),3)/3 -> Q 4 | E109: James | F109: Good Fly | G109: 11900 | H109: 5500 | I109: =Data[[#This Row],[Profit]]/Data[[#This Row],[Amount]] -> 0.4621848739 | J109: West
B110: 2005-10-10 | C110: =YEAR(Data[[#This Row],[Date]]) -> 2005 | D110: ="Q "&CEILING(MONTH(Data[[#This Row],[Date]]),3)/3 -> Q 4 | E110: Abhay | F110: VCC | G110: 11850 | H110: 2460 | I110: =Data[[#This Row],[Profit]]/Data[[#This Row],[Amount]] -> 0.2075949367 | J110: North
B111: 2005-10-12 | C111: =YEAR(Data[[#This Row],[Date]]) -> 2005 | D111: ="Q "&CEILING(MONTH(Data[[#This Row],[Date]]),3)/3 -> Q 4 | E111: Anshika | F111: White Associates | G111: 14700 | H111: 3940 | I111: =Data[[#This Row],[Profit]]/Data[[#This Row],[Amount]] -> 0.2680272109 | J111: West
B112: 2005-10-16 | C112: =YEAR(Data[[#This Row],[Date]]) -> 2005 | D112: ="Q "&CEILING(MONTH(Data[[#This Row],[Date]]),3)/3 -> Q 4 | E112: Swati | F112: Boston Consultants | G112: 13150 | H112: 3280 | I112: =Data[[#This Row],[Profit]]/Data[[#This Row],[Amount]] -> 0.2494296578 | J112: South
B113: 2005-10-23 | C113: =YEAR(Data[[#This Row],[Date]]) -> 2005 | D113: ="Q "&CEILING(MONTH(Data[[#This Row],[Date]]),3)/3 -> Q 4 | E113: Varsha | F113: Sharma & Co | G113: 13750 | H113: 5300 | I113: =Data[[#This Row],[Profit]]/Data[[#This Row],[Amount]] -> 0.3854545455 | J113: South
B114: 2005-10-28 | C114: =YEAR(Data[[#This Row],[Date]]) -> 2005 | D114: ="Q "&CEILING(MONTH(Data[[#This Row],[Date]]),3)/3 -> Q 4 | E114: Bruce | F114: MNTL | G114: 11350 | H114: 4820 | I114: =Data[[#This Row],[Profit]]/Data[[#This Row],[Amount]] -> 0.4246696035 | J114: East
B115: 2005-11-03 | C115: =YEAR(Data[[#This Row],[Date]]) -> 2005 | D115: ="Q "&CEILING(MONTH(Data[[#This Row],[Date]]),3)/3 -> Q 4 | E115: Ramesh | F115: India Trotters | G115: 11200 | H115: 2380 | I115: =Data[[#This Row],[Profit]]/Data[[#This Row],[Amount]] -> 0.2125 | J115: South
B116: 2005-11-04 | C116: =YEAR(Data[[#This Row],[Date]]) -> 2005 | D116: ="Q "&CEILING(MONTH(Data[[#This Row],[Date]]),3)/3 -> Q 4 | E116: Ramesh | F116: Data Tronics | G116: 12150 | H116: 5080 | I116: =Data[[#This Row],[Profit]]/Data[[#This Row],[Amount]] -> 0.4181069959 | J116: West
B117: 2005-11-04 | C117: =YEAR(Data[[#This Row],[Date]]) -> 2005 | D117: ="Q "&CEILING(MONTH(Data[[#This Row],[Date]]),3)/3 -> Q 4 | E117: Mark | F117: Sharma & Co | G117: 12050 | H117: 4880 | I117: =Data[[#This Row],[Profit]]/Data[[#This Row],[Amount]] -> 0.4049792531 | J117: West
B118: 2005-11-12 | C118: =YEAR(Data[[#This Row],[Date]]) -> 2005 | D118: ="Q "&CEILING(MONTH(Data[[#This Row],[Date]]),3)/3 -> Q 4 | E118: Anshika | F118: MNTL | G118: 13750 | H118: 4500 | I118: =Data[[#This Row],[Profit]]/Data[[#This Row],[Amount]] -> 0.3272727273 | J118: West
B119: 2005-11-16 | C119: =YEAR(Data[[#This Row],[Date]]) -> 2005 | D119: ="Q "&CEILING(MONTH(Data[[#This Row],[Date]]),3)/3 -> Q 4 | E119: Rajat | F119: Good Fly | G119: 14550 | H119: 4680 | I119: =Data[[#This Row],[Profit]]/Data[[#This Row],[Amount]] -> 0.3216494845 | J119: South
B120: 2005-11-17 | C120: =YEAR(Data[[#This Row],[Date]]) -> 2005 | D120: ="Q "&CEILING(MONTH(Data[[#This Row],[Date]]),3)/3 -> Q 4 | E120: Swati | F120: Good Fly | G120: 13150 | H120: 4400 | I120: =Data[[#This Row],[Profit]]/Data[[#This Row],[Amount]] -> 0.3346007605 | J120: East
B121: 2005-11-19 | C121: =YEAR(Data[[#This Row],[Date]]) -> 2005 | D121: ="Q "&CEILING(MONTH(Data[[#This Row],[Date]]),3)/3 -> Q 4 | E121: James | F121: Shyam & Sharma Co | G121: 14950 | H121: 5180 | I121: =Data[[#This Row],[Profit]]/Data[[#This Row],[Amount]] -> 0.3464882943 | J121: West
B122: 2005-11-20 | C122: =YEAR(Data[[#This Row],[Date]]) -> 2005 | D122: ="Q "&CEILING(MONTH(Data[[#This Row],[Date]]),3)/3 -> Q 4 | E122: Anshika | F122: Good Fly | G122: 10900 | H122: 2680 | I122: =Data[[#This Row],[Profit]]/Data[[#This Row],[Amount]] -> 0.2458715596 | J122: West
B123: 2005-11-20 | C123: =YEAR(Data[[#This Row],[Date]]) -> 2005 | D123: ="Q "&CEILING(MONTH(Data[[#This Row],[Date]]),3)/3 -> Q 4 | E123: James | F123: VCC | G123: 10550 | H123: 5420 | I123: =Data[[#This Row],[Profit]]/Data[[#This Row],[Amount]] -> 0.5137440758 | J123: West
B124: 2005-11-20 | C124: =YEAR(Data[[#This Row],[Date]]) -> 2005 | D124: ="Q "&CEILING(MONTH(Data[[#This Row],[Date]]),3)/3 -> Q 4 | E124: Mark | F124: Data Tronics | G124: 11100 | H124: 3360 | I124: =Data[[#This Row],[Profit]]/Data[[#This Row],[Amount]] -> 0.3027027027 | J124: West
B125: 2005-11-23 | C125: =YEAR(Data[[#This Row],[Date]]) -> 2005 | D125: ="Q "&CEILING(MONTH(Data[[#This Row],[Date]]),3)/3 -> Q 4 | E125: Mark | F125: Shyam & Sharma Co | G125: 12050 | H125: 4720 | I125: =Data[[#This Row],[Profit]]/Data[[#This Row],[Amount]] -> 0.3917012448 | J125: South
B126: 2005-11-23 | C126: =YEAR(Data[[#This Row],[Date]]) -> 2005 | D126: ="Q "&CEILING(MONTH(Data[[#This Row],[Date]]),3)/3 -> Q 4 | E126: James | F126: Sharma & Co | G126: 10900 | H126: 2560 | I126: =Data[[#This Row],[Profit]]/Data[[#This Row],[Amount]] -> 0.2348623853 | J126: North
B127: 2005-11-24 | C127: =YEAR(Data[[#This Row],[Date]]) -> 2005 | D127: ="Q "&CEILING(MONTH(Data[[#This Row],[Date]]),3)/3 -> Q 4 | E127: Bruce | F127: Data Tronics | G127: 10050 | H127: 2720 | I127: =Data[[#This Row],[Profit]]/Data[[#This Row],[Amount]] -> 0.2706467662 | J127: South
B128: 2005-11-25 | C128: =YEAR(Data[[#This Row],[Date]]) -> 2005 | D128: ="Q "&CEILING(MONTH(Data[[#This Row],[Date]]),3)/3 -> Q 4 | E128: Bruce | F128: Good Fly | G128: 14550 | H128: 4420 | I128: =Data[[#This Row],[Profit]]/Data[[#This Row],[Amount]] -> 0.3037800687 | J128: East
B129: 2005-11-25 | C129: =YEAR(Data[[#This Row],[Date]]) -> 2005 | D129: ="Q "&CEILING(MONTH(Data[[#This Row],[Date]]),3)/3 -> Q 4 | E129: Anshika | F129: Shah Associates | G129: 14000 | H129: 2640 | I129: =Data[[#This Row],[Profit]]/Data[[#This Row],[Amount]] -> 0.1885714286 | J129: West
B130: 2005-11-27 | C130: =YEAR(Data[[#This Row],[Date]]) -> 2005 | D130: ="Q "&CEILING(MONTH(Data[[#This Row],[Date]]),3)/3 -> Q 4 | E130: Anshika | F130: Shyam & Sharma Co | G130: 14350 | H130: 4900 | I130: =Data[[#This Row],[Profit]]/Data[[#This Row],[Amount]] -> 0.3414634146 | J130: North
B131: 2005-11-27 | C131: =YEAR(Data[[#This Row],[Date]]) -> 2005 | D131: ="Q "&CEILING(MONTH(Data[[#This Row],[Date]]),3)/3 -> Q 4 | E131: Mark | F131: Sharma & Co | G131: 10600 | H131: 5540 | I131: =Data[[#This Row],[Profit]]/Data[[#This Row],[Amount]] -> 0.5226415094 | J131: South
B132: 2005-11-28 | C132: =YEAR(Data[[#This Row],[Date]]) -> 2005 | D132: ="Q "&CEILING(MONTH(Data[[#This Row],[Date]]),3)/3 -> Q 4 | E132: Mark | F132: Good Fly | G132: 12950 | H132: 4440 | I132: =Data[[#This Row],[Profit]]/Data[[#This Row],[Amount]] -> 0.3428571429 | J132: West
B133: 2005-11-30 | C133: =YEAR(Data[[#This Row],[Date]]) -> 2005 | D133: ="Q "&CEILING(MONTH(Data[[#This Row],[Date]]),3)/3 -> Q 4 | E133: Jaspreet | F133: VCC | G133: 14650 | H133: 4380 | I133: =Data[[#This Row],[Profit]]/Data[[#This Row],[Amount]] -> 0.2989761092 | J133: East
B134: 2005-12-08 | C134: =YEAR(Data[[#This Row],[Date]]) -> 2005 | D134: ="Q "&CEILING(MONTH(Data[[#This Row],[Date]]),3)/3 -> Q 4 | E134: Mark | F134: Data Tronics | G134: 15000 | H134: 2120 | I134: =Data[[#This Row],[Profit]]/Data[[#This Row],[Amount]] -> 0.1413333333 | J134: East
B135: 2005-12-10 | C135: =YEAR(Data[[#This Row],[Date]]) -> 2005 | D135: ="Q "&CEILING(MONTH(Data[[#This Row],[Date]]),3)/3 -> Q 4 | E135: Abhay | F135: Sharma & Co | G135: 13050 | H135: 2360 | I135: =Data[[#This Row],[Profit]]/Data[[#This Row],[Amount]] -> 0.1808429119 | J135: West
B136: 2005-12-11 | C136: =YEAR(Data[[#This Row],[Date]]) -> 2005 | D136: ="Q "&CEILING(MONTH(Data[[#This Row],[Date]]),3)/3 -> Q 4 | E136: Jaspreet | F136: Data Tronics | G136: 13000 | H136: 5100 | I136: =Data[[#This Row],[Profit]]/Data[[#This Row],[Amount]] -> 0.3923076923 | J136: South
B137: 2005-12-12 | C137: =YEAR(Data[[#This Row],[Date]]) -> 2005 | D137: ="Q "&CEILING(MONTH(Data[[#This Row],[Date]]),3)/3 -> Q 4 | E137: Ramesh | F137: India Trotters | G137: 13300 | H137: 5680 | I137: =Data[[#This Row],[Profit]]/Data[[#This Row],[Amount]] -> 0.4270676692 | J137: West
B138: 2005-12-17 | C138: =YEAR(Data[[#This Row],[Date]]) -> 2005 | D138: ="Q "&CEILING(MONTH(Data[[#This Row],[Date]]),3)/3 -> Q 4 | E138: Rajat | F138: White Associates | G138: 12700 | H138: 2100 | I138: =Data[[#This Row],[Profit]]/Data[[#This Row],[Amount]] -> 0.1653543307 | J138: East
B139: 2005-12-20 | C139: =YEAR(Data[[#This Row],[Date]]) -> 2005 | D139: ="Q "&CEILING(MONTH(Data[[#This Row],[Date]]),3)/3 -> Q 4 | E139: Ramesh | F139: VCC | G139: 14600 | H139: 3020 | I139: =Data[[#This Row],[Profit]]/Data[[#This Row],[Amount]] -> 0.2068493151 | J139: West
B140: 2005-12-20 | C140: =YEAR(Data[[#This Row],[Date]]) -> 2005 | D140: ="Q "&CEILING(MONTH(Data[[#This Row],[Date]]),3)/3 -> Q 4 | E140: Ramesh | F140: Namint Enterprises | G140: 12700 | H140: 3120 | I140: =Data[[#This Row],[Profit]]/Data[[#This Row],[Amount]] -> 0.2456692913 | J140: West
B141: 2005-12-26 | C141: =YEAR(Data[[#This Row],[Date]]) -> 2005 | D141: ="Q "&CEILING(MONTH(Data[[#This Row],[Date]]),3)/3 -> Q 4 | E141: Charley | F141: India Trotters | G141: 12300 | H141: 2120 | I141: =Data[[#This Row],[Profit]]/Data[[#This Row],[Amount]] -> 0.1723577236 | J141: South
B142: 2005-12-27 | C142: =YEAR(Data[[#This Row],[Date]]) -> 2005 | D142: ="Q "&CEILING(MONTH(Data[[#This Row],[Date]]),3)/3 -> Q 4 | E142: Varsha | F142: Shyam & Sharma Co | G142: 10900 | H142: 3920 | I142: =Data[[#This Row],[Profit]]/Data[[#This Row],[Amount]] -> 0.3596330275 | J142: East
B143: 2005-12-28 | C143: =YEAR(Data[[#This Row],[Date]]) -> 2005 | D143: ="Q "&CEILING(MONTH(Data[[#This Row],[Date]]),3)/3 -> Q 4 | E143: Bruce | F143: Namint Enterprises | G143: 13600 | H143: 5500 | I143: =Data[[#This Row],[Profit]]/Data[[#This Row],[Amount]] -> 0.4044117647 | J143: North
B144: 2005-12-30 | C144: =YEAR(Data[[#This Row],[Date]]) -> 2005 | D144: ="Q "&CEILING(MONTH(Data[[#This Row],[Date]]),3)/3 -> Q 4 | E144: Abhay | F144: Shah Associates | G144: 13750 | H144: 5500 | I144: =Data[[#This Row],[Profit]]/Data[[#This Row],[Amount]] -> 0.4 | J144: East
B145: 2005-12-31 | C145: =YEAR(Data[[#This Row],[Date]]) -> 2005 | D145: ="Q "&CEILING(MONTH(Data[[#This Row],[Date]]),3)/3 -> Q 4 | E145: Swati | F145: MNTL | G145: 12600 | H145: 5560 | I145: =Data[[#This Row],[Profit]]/Data[[#This Row],[Amount]] -> 0.4412698413 | J145: North
B146: 2005-12-31 | C146: =YEAR(Data[[#This Row],[Date]]) -> 2005 | D146: ="Q "&CEILING(MONTH(Data[[#This Row],[Date]]),3)/3 -> Q 4 | E146: Ramesh | F146: Good Fly | G146: 12250 | H146: 4540 | I146: =Data[[#This Row],[Profit]]/Data[[#This Row],[Amount]] -> 0.3706122449 | J146: South
B147: 2006-01-05 | C147: =YEAR(Data[[#This Row],[Date]]) -> 2006 | D147: ="Q "&CEILING(MONTH(Data[[#This Row],[Date]]),3)/3 -> Q 1 | E147: Bruce | F147: Boston Consultants | G147: 11850 | H147: 4360 | I147: =Data[[#This Row],[Profit]]/Data[[#This Row],[Amount]] -> 0.3679324895 | J147: West
B148: 2006-01-08 | C148: =YEAR(Data[[#This Row],[Date]]) -> 2006 | D148: ="Q "&CEILING(MONTH(Data[[#This Row],[Date]]),3)/3 -> Q 1 | E148: Varsha | F148: Namint Enterprises | G148: 11150 | H148: 4860 | I148: =Data[[#This Row],[Profit]]/Data[[#This Row],[Amount]] -> 0.4358744395 | J148: West
B149: 2006-01-08 | C149: =YEAR(Data[[#This Row],[Date]]) -> 2006 | D149: ="Q "&CEILING(MONTH(Data[[#This Row],[Date]]),3)/3 -> Q 1 | E149: Swati | F149: India Trotters | G149: 10600 | H149: 3880 | I149: =Data[[#This Row],[Profit]]/Data[[#This Row],[Amount]] -> 0.3660377358 | J149: South
B150: 2006-01-18 | C150: =YEAR(Data[[#This Row],[Date]]) -> 2006 | D150: ="Q "&CEILING(MONTH(Data[[#This Row],[Date]]),3)/3 -> Q 1 | E150: Bruce | F150: Data Tronics | G150: 10150 | H150: 2400 | I150: =Data[[#This Row],[Profit]]/Data[[#This Row],[Amount]] -> 0.236453202 | J150: West
B151: 2006-01-19 | C151: =YEAR(Data[[#This Row],[Date]]) -> 2006 | D151: ="Q "&CEILING(MONTH(Data[[#This Row],[Date]]),3)/3 -> Q 1 | E151: Jaspreet | F151: White Associates | G151: 11750 | H151: 3540 | I151: =Data[[#This Row],[Profit]]/Data[[#This Row],[Amount]] -> 0.3012765957 | J151: South
B152: 2006-01-21 | C152: =YEAR(Data[[#This Row],[Date]]) -> 2006 | D152: ="Q "&CEILING(MONTH(Data[[#This Row],[Date]]),3)/3 -> Q 1 | E152: Abhay | F152: Shyam & Sharma Co | G152: 13750 | H152: 3340 | I152: =Data[[#This Row],[Profit]]/Data[[#This Row],[Amount]] -> 0.2429090909 | J152: West
B153: 2006-01-23 | C153: =YEAR(Data[[#This Row],[Date]]) -> 2006 | D153: ="Q "&CEILING(MONTH(Data[[#This Row],[Date]]),3)/3 -> Q 1 | E153: Rajat | F153: India Trotters | G153: 11050 | H153: 2060 | I153: =Data[[#This Row],[Profit]]/Data[[#This Row],[Amount]] -> 0.1864253394 | J153: West
B154: 2006-01-24 | C154: =YEAR(Data[[#This Row],[Date]]) -> 2006 | D154: ="Q "&CEILING(MONTH(Data[[#This Row],[Date]]),3)/3 -> Q 1 | E154: Rajat | F154: MNTL | G154: 10800 | H154: 3700 | I154: =Data[[#This Row],[Profit]]/Data[[#This Row],[Amount]] -> 0.3425925926 | J154: North
B155: 2006-01-27 | C155: =YEAR(Data[[#This Row],[Date]]) -> 2006 | D155: ="Q "&CEILING(MONTH(Data[[#This Row],[Date]]),3)/3 -> Q 1 | E155: Charley | F155: Namint Enterprises | G155: 14350 | H155: 2340 | I155: =Data[[#This Row],[Profit]]/Data[[#This Row],[Amount]] -> 0.1630662021 | J155: West
B156: 2006-01-28 | C156: =YEAR(Data[[#This Row],[Date]]) -> 2006 | D156: ="Q "&CEILING(MONTH(Data[[#This Row],[Date]]),3)/3 -> Q 1 | E156: Abhay | F156: India Trotters | G156: 10900 | H156: 3380 | I156: =Data[[#This Row],[Profit]]/Data[[#This Row],[Amount]] -> 0.3100917431 | J156: East
B157: 2006-01-29 | C157: =YEAR(Data[[#This Row],[Date]]) -> 2006 | D157: ="Q "&CEILING(MONTH(Data[[#This Row],[Date]]),3)/3 -> Q 1 | E157: Abhay | F157: Data Tronics | G157: 11000 | H157: 3580 | I157: =Data[[#This Row],[Profit]]/Data[[#This Row],[Amount]] -> 0.3254545455 | J157: South
B158: 2006-01-30 | C158: =YEAR(Data[[#This Row],[Date]]) -> 2006 | D158: ="Q "&CEILING(MONTH(Data[[#This Row],[Date]]),3)/3 -> Q 1 | E158: Abhay | F158: Namint Enterprises | G158: 13050 | H158: 2780 | I158: =Data[[#This Row],[Profit]]/Data[[#This Row],[Amount]] -> 0.2130268199 | J158: South
B159: 2006-02-11 | C159: =YEAR(Data[[#This Row],[Date]]) -> 2006 | D159: ="Q "&CEILING(MONTH(Data[[#This Row],[Date]]),3)/3 -> Q 1 | E159: Rajat | F159: Good Fly | G159: 11500 | H159: 2160 | I159: =Data[[#This Row],[Profit]]/Data[[#This Row],[Amount]] -> 0.187826087 | J159: South
B160: 2006-02-14 | C160: =YEAR(Data[[#This Row],[Date]]) -> 2006 | D160: ="Q "&CEILING(MONTH(Data[[#This Row],[Date]]),3)/3 -> Q 1 | E160: Charley | F160: Boston Consultants | G160: 12050 | H160: 5640 | I160: =Data[[#This Row],[Profit]]/Data[[#This Row],[Amount]] -> 0.4680497925 | J160: South
B161: 2006-02-16 | C161: =YEAR(Data[[#This Row],[Date]]) -> 2006 | D161: ="Q "&CEILING(MONTH(Data[[#This Row],[Date]]),3)/3 -> Q 1 | E161: Charley | F161: Sharma & Co | G161: 11400 | H161: 2940 | I161: =Data[[#This Row],[Profit]]/Data[[#This Row],[Amount]] -> 0.2578947368 | J161: East
B162: 2006-02-19 | C162: =YEAR(Data[[#This Row],[Date]]) -> 2006 | D162: ="Q "&CEILING(MONTH(Data[[#This Row],[Date]]),3)/3 -> Q 1 | E162: Charley | F162: Good Fly | G162: 11900 | H162: 4620 | I162: =Data[[#This Row],[Profit]]/Data[[#This Row],[Amount]] -> 0.3882352941 | J162: North
B163: 2006-02-19 | C163: =YEAR(Data[[#This Row],[Date]]) -> 2006 | D163: ="Q "&CEILING(MONTH(Data[[#This Row],[Date]]),3)/3 -> Q 1 | E163: Mark | F163: Good Fly | G163: 13300 | H163: 3780 | I163: =Data[[#This Row],[Profit]]/Data[[#This Row],[Amount]] -> 0.2842105263 | J163: North
B164: 2006-02-22 | C164: =YEAR(Data[[#This Row],[Date]]) -> 2006 | D164: ="Q "&CEILING(MONTH(Data[[#This Row],[Date]]),3)/3 -> Q 1 | E164: Mark | F164: White Associates | G164: 13750 | H164: 2080 | I164: =Data[[#This Row],[Profit]]/Data[[#This Row],[Amount]] -> 0.1512727273 | J164: West
B165: 2006-02-24 | C165: =YEAR(Data[[#This Row],[Date]]) -> 2006 | D165: ="Q "&CEILING(MONTH(Data[[#This Row],[Date]]),3)/3 -> Q 1 | E165: Varsha | F165: Jindle Power Works | G165: 13150 | H165: 4080 | I165: =Data[[#This Row],[Profit]]/Data[[#This Row],[Amount]] -> 0.3102661597 | J165: North
B166: 2006-02-25 | C166: =YEAR(Data[[#This Row],[Date]]) -> 2006 | D166: ="Q "&CEILING(MONTH(Data[[#This Row],[Date]]),3)/3 -> Q 1 | E166: James | F166: Shyam & Sharma Co | G166: 14800 | H166: 2260 | I166: =Data[[#This Row],[Profit]]/Data[[#This Row],[Amount]] -> 0.1527027027 | J166: West
B167: 2006-02-27 | C167: =YEAR(Data[[#This Row],[Date]]) -> 2006 | D167: ="Q "&CEILING(MONTH(Data[[#This Row],[Date]]),3)/3 -> Q 1 | E167: Ramesh | F167: Shyam & Sharma Co | G167: 14350 | H167: 2660 | I167: =Data[[#This Row],[Profit]]/Data[[#This Row],[Amount]] -> 0.1853658537 | J167: South
B168: 2006-03-01 | C168: =YEAR(Data[[#This Row],[Date]]) -> 2006 | D168: ="Q "&CEILING(MONTH(Data[[#This Row],[Date]]),3)/3 -> Q 1 | E168: Bruce | F168: Sharma & Co | G168: 13600 | H168: 4820 | I168: =Data[[#This Row],[Profit]]/Data[[#This Row],[Amount]] -> 0.3544117647 | J168: North
B169: 2006-03-05 | C169: =YEAR(Data[[#This Row],[Date]]) -> 2006 | D169: ="Q "&CEILING(MONTH(Data[[#This Row],[Date]]),3)/3 -> Q 1 | E169: Jaspreet | F169: Good Fly | G169: 12600 | H169: 2740 | I169: =Data[[#This Row],[Profit]]/Data[[#This Row],[Amount]] -> 0.2174603175 | J169: East
B170: 2006-03-07 | C170: =YEAR(Data[[#This Row],[Date]]) -> 2006 | D170: ="Q "&CEILING(MONTH(Data[[#This Row],[Date]]),3)/3 -> Q 1 | E170: Mark | F170: Good Fly | G170: 13600 | H170: 5280 | I170: =Data[[#This Row],[Profit]]/Data[[#This Row],[Amount]] -> 0.3882352941 | J170: South
B171: 2006-03-08 | C171: =YEAR(Data[[#This Row],[Date]]) -> 2006 | D171: ="Q "&CEILING(MONTH(Data[[#This Row],[Date]]),3)/3 -> Q 1 | E171: Varsha | F171: India Trotters | G171: 10600 | H171: 2320 | I171: =Data[[#This Row],[Profit]]/Data[[#This Row],[Amount]] -> 0.2188679245 | J171: North
B172: 2006-03-14 | C172: =YEAR(Data[[#This Row],[Date]]) -> 2006 | D172: ="Q "&CEILING(MONTH(Data[[#This Row],[Date]]),3)/3 -> Q 1 | E172: Veronica | F172: Data Tronics | G172: 11150 | H172: 4000 | I172: =Data[[#This Row],[Profit]]/Data[[#This Row],[Amount]] -> 0.3587443946 | J172: North
B173: 2006-03-14 | C173: =YEAR(Data[[#This Row],[Date]]) -> 2006 | D173: ="Q "&CEILING(MONTH(Data[[#This Row],[Date]]),3)/3 -> Q 1 | E173: Rajat | F173: Namint Enterprises | G173: 12100 | H173: 2940 | I173: =Data[[#This Row],[Profit]]/Data[[#This Row],[Amount]] -> 0.2429752066 | J173: North
B174: 2006-03-15 | C174: =YEAR(Data[[#This Row],[Date]]) -> 2006 | D174: ="Q "&CEILING(MONTH(Data[[#This Row],[Date]]),3)/3 -> Q 1 | E174: Ramesh | F174: Shah Associates | G174: 12850 | H174: 2720 | I174: =Data[[#This Row],[Profit]]/Data[[#This Row],[Amount]] -> 0.2116731518 | J174: North
B175: 2006-03-16 | C175: =YEAR(Data[[#This Row],[Date]]) -> 2006 | D175: ="Q "&CEILING(MONTH(Data[[#This Row],[Date]]),3)/3 -> Q 1 | E175: Veronica | F175: MNTL | G175: 13800 | H175: 5300 | I175: =Data[[#This Row],[Profit]]/Data[[#This Row],[Amount]] -> 0.384057971 | J175: East
B176: 2006-03-17 | C176: =YEAR(Data[[#This Row],[Date]]) -> 2006 | D176: ="Q "&CEILING(MONTH(Data[[#This Row],[Date]]),3)/3 -> Q 1 | E176: Anshika | F176: Good Fly | G176: 11050 | H176: 4500 | I176: =Data[[#This Row],[Profit]]/Data[[#This Row],[Amount]] -> 0.407239819 | J176: South
B177: 2006-03-20 | C177: =YEAR(Data[[#This Row],[Date]]) -> 2006 | D177: ="Q "&CEILING(MONTH(Data[[#This Row],[Date]]),3)/3 -> Q 1 | E177: James | F177: Data Tronics | G177: 11800 | H177: 2540 | I177: =Data[[#This Row],[Profit]]/Data[[#This Row],[Amount]] -> 0.2152542373 | J177: East
B178: 2006-03-26 | C178: =YEAR(Data[[#This Row],[Date]]) -> 2006 | D178: ="Q "&CEILING(MONTH(Data[[#This Row],[Date]]),3)/3 -> Q 1 | E178: Veronica | F178: Shah Associates | G178: 14950 | H178: 3120 | I178: =Data[[#This Row],[Profit]]/Data[[#This Row],[Amount]] -> 0.2086956522 | J178: North
B179: 2006-03-27 | C179: =YEAR(Data[[#This Row],[Date]]) -> 2006 | D179: ="Q "&CEILING(MONTH(Data[[#This Row],[Date]]),3)/3 -> Q 1 | E179: Mark | F179: Shah Associates | G179: 10550 | H179: 3080 | I179: =Data[[#This Row],[Profit]]/Data[[#This Row],[Amount]] -> 0.291943128 | J179: East
B180: 2006-03-29 | C180: =YEAR(Data[[#This Row],[Date]]) -> 2006 | D180: ="Q "&CEILING(MONTH(Data[[#This Row],[Date]]),3)/3 -> Q 1 | E180: Rajat | F180: Sharma & Co | G180: 13650 | H180: 3300 | I180: =Data[[#This Row],[Profit]]/Data[[#This Row],[Amount]] -> 0.2417582418 | J180: South
B181: 2006-03-30 | C181: =YEAR(Data[[#This Row],[Date]]) -> 2006 | D181: ="Q "&CEILING(MONTH(Data[[#This Row],[Date]]),3)/3 -> Q 1 | E181: Jaspreet | F181: Jindle Power Works | G181: 10600 | H181: 4040 | I181: =Data[[#This Row],[Profit]]/Data[[#This Row],[Amount]] -> 0.3811320755 | J181: West
B182: 2006-03-31 | C182: =YEAR(Data[[#This Row],[Date]]) -> 2006 | D182: ="Q "&CEILING(MONTH(Data[[#This Row],[Date]]),3)/3 -> Q 1 | E182: Anshika | F182: Shah Associates | G182: 13200 | H182: 3760 | I182: =Data[[#This Row],[Profit]]/Data[[#This Row],[Amount]] -> 0.2848484848 | J182: East
B183: 2006-03-31 | C183: =YEAR(Data[[#This Row],[Date]]) -> 2006 | D183: ="Q "&CEILING(MONTH(Data[[#This Row],[Date]]),3)/3 -> Q 1 | E183: Ramesh | F183: India Trotters | G183: 10550 | H183: 2700 | I183: =Data[[#This Row],[Profit]]/Data[[#This Row],[Amount]] -> 0.2559241706 | J183: North
B184: 2006-04-02 | C184: =YEAR(Data[[#This Row],[Date]]) -> 2006 | D184: ="Q "&CEILING(MONTH(Data[[#This Row],[Date]]),3)/3 -> Q 2 | E184: Varsha | F184: MNTL | G184: 13100 | H184: 2060 | I184: =Data[[#This Row],[Profit]]/Data[[#This Row],[Amount]] -> 0.1572519084 | J184: South
B185: 2006-04-08 | C185: =YEAR(Data[[#This Row],[Date]]) -> 2006 | D185: ="Q "&CEILING(MONTH(Data[[#This Row],[Date]]),3)/3 -> Q 2 | E185: Abhay | F185: Namint Enterprises | G185: 12600 | H185: 2920 | I185: =Data[[#This Row],[Profit]]/Data[[#This Row],[Amount]] -> 0.2317460317 | J185: North
B186: 2006-04-10 | C186: =YEAR(Data[[#This Row],[Date]]) -> 2006 | D186: ="Q "&CEILING(MONTH(Data[[#This Row],[Date]]),3)/3 -> Q 2 | E186: Charley | F186: India Trotters | G186: 10500 | H186: 4240 | I186: =Data[[#This Row],[Profit]]/Data[[#This Row],[Amount]] -> 0.4038095238 | J186: South
B187: 2006-04-11 | C187: =YEAR(Data[[#This Row],[Date]]) -> 2006 | D187: ="Q "&CEILING(MONTH(Data[[#This Row],[Date]]),3)/3 -> Q 2 | E187: Ramesh | F187: India Trotters | G187: 12850 | H187: 5620 | I187: =Data[[#This Row],[Profit]]/Data[[#This Row],[Amount]] -> 0.4373540856 | J187: East
B188: 2006-04-12 | C188: =YEAR(Data[[#This Row],[Date]]) -> 2006 | D188: ="Q "&CEILING(MONTH(Data[[#This Row],[Date]]),3)/3 -> Q 2 | E188: Rajat | F188: Namint Enterprises | G188: 13750 | H188: 4340 | I188: =Data[[#This Row],[Profit]]/Data[[#This Row],[Amount]] -> 0.3156363636 | J188: North
B189: 2006-04-15 | C189: =YEAR(Data[[#This Row],[Date]]) -> 2006 | D189: ="Q "&CEILING(MONTH(Data[[#This Row],[Date]]),3)/3 -> Q 2 | E189: James | F189: Sharma & Co | G189: 11800 | H189: 2020 | I189: =Data[[#This Row],[Profit]]/Data[[#This Row],[Amount]] -> 0.1711864407 | J189: East
B190: 2006-04-20 | C190: =YEAR(Data[[#This Row],[Date]]) -> 2006 | D190: ="Q "&CEILING(MONTH(Data[[#This Row],[Date]]),3)/3 -> Q 2 | E190: Veronica | F190: MNTL | G190: 13050 | H190: 3040 | I190: =Data[[#This Row],[Profit]]/Data[[#This Row],[Amount]] -> 0.2329501916 | J190: West
B191: 2006-04-22 | C191: =YEAR(Data[[#This Row],[Date]]) -> 2006 | D191: ="Q "&CEILING(MONTH(Data[[#This Row],[Date]]),3)/3 -> Q 2 | E191: Ramesh | F191: Jindle Power Works | G191: 11950 | H191: 2940 | I191: =Data[[#This Row],[Profit]]/Data[[#This Row],[Amount]] -> 0.2460251046 | J191: South
B192: 2006-04-25 | C192: =YEAR(Data[[#This Row],[Date]]) -> 2006 | D192: ="Q "&CEILING(MONTH(Data[[#This Row],[Date]]),3)/3 -> Q 2 | E192: Charley | F192: MNTL | G192: 11650 | H192: 3260 | I192: =Data[[#This Row],[Profit]]/Data[[#This Row],[Amount]] -> 0.2798283262 | J192: North
B193: 2006-04-28 | C193: =YEAR(Data[[#This Row],[Date]]) -> 2006 | D193: ="Q "&CEILING(MONTH(Data[[#This Row],[Date]]),3)/3 -> Q 2 | E193: Varsha | F193: MNTL | G193: 14800 | H193: 2680 | I193: =Data[[#This Row],[Profit]]/Data[[#This Row],[Amount]] -> 0.1810810811 | J193: North
B194: 2006-05-01 | C194: =YEAR(Data[[#This Row],[Date]]) -> 2006 | D194: ="Q "&CEILING(MONTH(Data[[#This Row],[Date]]),3)/3 -> Q 2 | E194: Abhay | F194: Jindle Power Works | G194: 11050 | H194: 2360 | I194: =Data[[#This Row],[Profit]]/Data[[#This Row],[Amount]] -> 0.2135746606 | J194: North
B195: 2006-05-03 | C195: =YEAR(Data[[#This Row],[Date]]) -> 2006 | D195: ="Q "&CEILING(MONTH(Data[[#This Row],[Date]]),3)/3 -> Q 2 | E195: Anshika | F195: Namint Enterprises | G195: 13050 | H195: 4940 | I195: =Data[[#This Row],[Profit]]/Data[[#This Row],[Amount]] -> 0.3785440613 | J195: South
B196: 2006-05-06 | C196: =YEAR(Data[[#This Row],[Date]]) -> 2006 | D196: ="Q "&CEILING(MONTH(Data[[#This Row],[Date]]),3)/3 -> Q 2 | E196: Rajat | F196: Shyam & Sharma Co | G196: 14700 | H196: 2100 | I196: =Data[[#This Row],[Profit]]/Data[[#This Row],[Amount]] -> 0.1428571429 | J196: West
B197: 2006-05-11 | C197: =YEAR(Data[[#This Row],[Date]]) -> 2006 | D197: ="Q "&CEILING(MONTH(Data[[#This Row],[Date]]),3)/3 -> Q 2 | E197: Swati | F197: White Associates | G197: 14900 | H197: 2820 | I197: =Data[[#This Row],[Profit]]/Data[[#This Row],[Amount]] -> 0.189261745 | J197: South
B198: 2006-05-13 | C198: =YEAR(Data[[#This Row],[Date]]) -> 2006 | D198: ="Q "&CEILING(MONTH(Data[[#This Row],[Date]]),3)/3 -> Q 2 | E198: Jaspreet | F198: Shah Associates | G198: 13550 | H198: 5000 | I198: =Data[[#This Row],[Profit]]/Data[[#This Row],[Amount]] -> 0.36900369 | J198: North
B199: 2006-05-15 | C199: =YEAR(Data[[#This Row],[Date]]) -> 2006 | D199: ="Q "&CEILING(MONTH(Data[[#This Row],[Date]]),3)/3 -> Q 2 | E199: Rajat | F199: VCC | G199: 10500 | H199: 5640 | I199: =Data[[#This Row],[Profit]]/Data[[#This Row],[Amount]] -> 0.5371428571 | J199: West
B200: 2006-05-16 | C200: =YEAR(Data[[#This Row],[Date]]) -> 2006 | D200: ="Q "&CEILING(MONTH(Data[[#This Row],[Date]]),3)/3 -> Q 2 | E200: Ramesh | F200: MNTL | G200: 10200 | H200: 4980 | I200: =Data[[#This Row],[Profit]]/Data[[#This Row],[Amount]] -> 0.4882352941 | J200: North
B201: 2006-05-17 | C201: =YEAR(Data[[#This Row],[Date]]) -> 2006 | D201: ="Q "&CEILING(MONTH(Data[[#This Row],[Date]]),3)/3 -> Q 2 | E201: Charley | F201: Shah Associates | G201: 11450 | H201: 3800 | I201: =Data[[#This Row],[Profit]]/Data[[#This Row],[Amount]] -> 0.3318777293 | J201: North
B202: 2006-05-22 | C202: =YEAR(Data[[#This Row],[Date]]) -> 2006 | D202: ="Q "&CEILING(MONTH(Data[[#This Row],[Date]]),3)/3 -> Q 2 | E202: Veronica | F202: India Trotters | G202: 14500 | H202: 4980 | I202: =Data[[#This Row],[Profit]]/Data[[#This Row],[Amount]] -> 0.3434482759 | J202: West
... 392 more rows

Sheet Dashboard
B3: Selection Options
B4: Year | C4: Qtr | D4: Sales Rep | E4: Customer | F4: Profit % | G4: Region
B5: 2006 | C5: Q 2 | G5: West
I7: Transactions | J7: =SUBTOTAL(2,Data[Year]) -> 8
I9: Total Sales | J9: =SUBTOTAL(9,Data[Amount]) -> 97650
I10: Max Sales | J10: =SUBTOTAL(4,Data[Amount]) -> 14700
I11: Min Sales | J11: =SUBTOTAL(5,Data[Amount]) -> 10100
I13: Total Profit | J13: =SUBTOTAL(9,Data[Profit]) -> 34020
I14: Max Profit | J14: =SUBTOTAL(4,Data[Profit]) -> 5720
I15: Min Profit | J15: =SUBTOTAL(5,Data[Profit]) -> 2100
B18: Profitability %
I19: Max Profit | J19: =SUBTOTAL(4,Data[Profit %]) -> 0.5371428571
I20: Min Profit | J20: =SUBTOTAL(5,Data[Profit %]) -> 0.1428571429

Sheet Resources
A2: Prior Readings
B3: 1. Advanced Filter in Excel
B4: 2. Automate Advanced Filter with a Macro
B5: 3. Make a Dashboard in 15 Mins
B6: 4. Learn how tables can help you make your Vlookup Robust
B7: 5. How to find
C8: Year
C9: Qtrs
A11: Other Simple Dashboards
B12: 1. Use Drop Downs to make Chart Switches
B13: 2. Check Button Chart
B14: 3. Convert a Data Dump into a Visualization
B15: 4. Funnel Chart Visualization
A18: More Sophisticated Dashboards for Advanced Users
B19: 1. Republic Day Visualization
B20: 2. 30 Day Challenge Dashboard
B21: 3. Bubble Chart Matrix with Scrollbars
B22: 4. Economist Chart Rework
